fUSD/lending_fUSD_20250108
["ID","MTS","AMOUNT","RATE_DAILY","PERIOD"]
[348173517,1736363453681,-2152.0,0.00012274,2]
[348173518,1736363453691,-251.32162907,0.00012274,2]
[348173519,1736363453702,-152.81154072,0.00012274,2]
[348173520,1736363453712,-207.98235848,0.00012274,2]
[348173521,1736363453721,-153.84235597,0.00012274,2]
[348173522,1736363453731,-150.0,0.00012279,2]
[348173523,1736363453742,-150.0,0.00012281,2]
[348173524,1736363453751,-150.0,0.00012281,2]
[348173525,1736363453761,-292.99270296,0.00012281,2]
[348173526,1736363453771,-150.0,0.00012285,2]
[348173527,1736363453781,-150.0,0.0001229,2]
[348173528,1736363453795,-3000.0,0.0001229,2]
[348173529,1736363453805,-150.0,0.00012292,2]
[348173530,1736363453814,-150.0,0.00012292,2]
[348173531,1736363453823,-150.0,0.00012293,2]
[348173532,1736363453833,-1118.20718362,0.00012299,3]
[348173533,1736363453843,-500.0,0.00012299,2]
[348173534,1736363453852,-1724.71,0.00012299,2]
[348173535,1736363453862,-1724.71,0.00012299,2]
[348173536,1736363453872,-1724.71,0.00012299,2]
[348173537,1736363453882,-1724.71,0.00012299,2]
[348173538,1736363453893,-1724.71,0.00012299,2]
[348173539,1736363453903,-1724.71,0.00012299,2]
[348173540,1736363453913,-1724.71,0.00012299,2]
[348173541,1736363453923,-1724.71,0.00012299,2]
[348173542,1736363453933,-1724.71,0.00012299,2]
[348173543,1736363453942,-1724.71,0.00012299,2]
[348173544,1736363453952,-1724.71,0.00012299,2]
[348173545,1736363453962,-1724.71,0.00012299,2]
[348173546,1736363453972,-1724.71,0.00012299,2]
[348173547,1736363453981,-1724.77064178,0.00012299,2]
[348173548,1736363453991,-498245.96808089,0.000123,4]
[348173549,1736363454006,-1018962.68259124,0.000123,4]
[348173550,1736363454017,-2374.13895798,0.000123,4]
[348173551,1736363454550,-1000.0,0.00010072,2]
[348173552,1736363454559,-500.0,0.0001017,2]
[348173553,1736363454570,-621.86,0.00010171,2]
[348173554,1736363454580,-500.0,0.00010171,2]
[348173555,1736363454590,-500.0,0.00010171,2]
[348173556,1736363454599,-500.0,0.00010171,2]
[348173557,1736363454609,-500.0,0.00010445,2]
[348173558,1736363454619,-500.0,0.00010719,2]
[348173559,1736363454629,-164.79,0.00010993,2]
[348173560,1736363454638,-816.01,0.00011816,2]
[348173561,1736363454648,-816.01,0.0001209,2]
[348173562,1736363454658,-12437.9324048,0.000123,4]
[348173563,1736363454695,-1237.96,0.00010719,2]
[348173564,1736363454705,-861.32317401,0.000123,4]
[348173565,1736363454723,-203976.63582941,0.000123,4]
[348173566,1736363456050,-500.0232,0.00010072,2]
[348173567,1736363456062,-72745.9393,0.00010072,2]
[348173568,1736363456074,-1017.13,0.00010171,2]
[348173569,1736363456084,-500.0,0.00010171,2]
[348173570,1736363456093,-1237.96,0.00010993,2]
[348173571,1736363456104,-110974.14613161,0.000123,4]
[348173572,1736363456115,-9118.05927346,0.000123,4]
[348173573,1736363456127,-500.0,0.000123,4]
[348173574,1736363456146,-500.0,0.00010171,2]
[348173575,1736363456156,-9387.11476008,0.000123,4]
[348173576,1736363456167,-296895.48452342,0.000123,4]
[348173577,1736363456178,-1878.07164203,0.000123,4]
[348173578,1736363456190,-59188.17004866,0.000123,4]
[348173579,1736363456202,-18933.75830931,0.000123,4]
[348173580,1736363456459,-577.51,0.0001017,2]
[348173581,1736363456469,-500.0,0.00010445,2]
[348173582,1736363456479,-17787.15469345,0.00010447,2]
[348173583,1736363456490,-93999.99999999,0.00010447,2]
[348173584,1736363456503,-778558.03884169,0.00010447,2]
[348173585,1736363456857,-367.371,0.0001017,2]
[348173586,1736363456868,-132.629,0.0001017,2]
[348173587,1736363456878,-500.0,0.00010171,2]
[348173588,1736363456887,-500.0,0.00010171,2]
[348173589,1736363456896,-500.0,0.00010171,2]
[348173590,1736363456905,-500.0,0.00010445,2]
[348173591,1736363456914,-2542.61350004,0.00010447,2]
[348173592,1736363456931,-2272.049504,0.00010447,2]
[348173593,1736363456942,-3539.95878169,0.00010447,2]
[348173594,1736363456960,-32968.94821966,0.00010447,2]
[348173595,1736363456971,-163499.99999961,0.00010447,2]
[348173596,1736363477765,160.95,8.727e-05,2]
[348173597,1736363670521,266.22,0.00015616,64]
[348173598,1736363670778,266.22,0.00015616,70]
[348173599,1736363670993,266.22,0.00015616,76]
[348173600,1736363671209,266.22,0.00015616,82]
[348173601,1736363671489,266.22,0.00015616,88]
[348173602,1736363671747,266.22,0.00015616,95]
[348173603,1736363671964,266.22,0.00015616,101]
[348173604,1736363672165,266.22,0.00015616,107]
[348173605,1736363672368,266.22,0.00015616,113]
[348173606,1736363672618,266.22,0.00015616,120]
[348173608,1736364315272,-500.0,8.929e-05,2]
[348173609,1736364324305,-1070.03300869,9e-05,2]
[348173610,1736364421803,160.95,7.058e-05,2]
[348173611,1736364424837,-160.95,8.823e-05,2]
[348173622,1736364450825,-250.0,8.788e-05,2]
[348173623,1736364474065,-421.01495011,8.795e-05,2]
[348173624,1736364481457,4216.2682089,0.0002,120]
[348173625,1736364488763,757.73,8.219e-05,2]
[348173636,1736364632154,-250.0,8.777e-05,2]
[348173637,1736364632164,-1684.10504989,8.795e-05,2]
[348173638,1736364632174,-166.39,8.811e-05,2]
[348173639,1736364632183,-159.26,9.273e-05,2]
[348173640,1736364632192,-436.4111,9.32e-05,2]
[348173641,1736364632204,-200.0,9.348e-05,2]
[348173642,1736364632213,-355.71,9.368e-05,2]
[348173643,1736364632224,-150.0,9.395e-05,2]
[348173644,1736364632233,-150.0,9.395e-05,2]
[348173645,1736364632243,-150.0,9.395e-05,2]
[348173646,1736364632253,-12724.23315806,9.42e-05,2]
[348173647,1736364632447,-939.21051548,9.42e-05,2]
[348173947,1736364638034,-932.02,9.42e-05,2]
[348173948,1736364638046,-1896.2,9.42e-05,2]
[348173949,1736364638060,-7408.33632646,9.42e-05,2]
[348173950,1736364638071,-150.0,9.456e-05,2]
[348173951,1736364638085,-250.0,9.476e-05,2]
[348173952,1736364638097,-150.0,9.517e-05,2]
[348173953,1736364638107,-150.0,9.544e-05,2]
[348173954,1736364638118,-1000.0,9.551e-05,2]
[348173955,1736364638128,-150.0,9.568e-05,2]
[348173956,1736364638138,-150.0,9.579e-05,2]
[348173957,1736364638150,-2892.27,9.588e-05,2]
[348173958,1736364638162,-150.0,9.64e-05,2]
[348173959,1736364638174,-150.0,9.693e-05,2]
[348173960,1736364638185,-150.0,9.702e-05,2]
[348173961,1736364638196,-150.0,9.742e-05,2]
[348173962,1736364638206,-150.0,9.763e-05,2]
[348173963,1736364638219,-150.0,9.768e-05,2]
[348173964,1736364638231,-536.0,9.768e-05,2]
[348173965,1736364638245,-500.0,9.768e-05,2]
[348173966,1736364638256,-500.0,9.768e-05,2]
[348173967,1736364638266,-500.0,9.768e-05,2]
[348173968,1736364638277,-500.0,9.768e-05,2]
[348173969,1736364638288,-500.0,9.768e-05,2]
[348173970,1736364638299,-537.80743117,9.768e-05,2]
[348173971,1736364638309,-152955.3536469,9.769e-05,2]
[348173972,1736364638329,-9288.976,9.769e-05,2]
[348173973,1736364638343,-7043.86612119,9.769e-05,2]
[348173974,1736364638356,-500.0,9.769e-05,2]
[348173975,1736364638377,-1399.35167864,9.769e-05,2]
[348173976,1736364638415,-21453.71967683,9.769e-05,2]
[348173977,1736364638428,-485.2,9.769e-05,2]
[348173990,1736364640134,-500.0,9.768e-05,2]
[348173991,1736364640147,-9776.06364282,9.769e-05,2]
[348173992,1736364640228,-20127.42404999,9.769e-05,2]
[348173993,1736364640242,-80162.1531504,9.769e-05,2]
[348173994,1736364640256,-25445.59565797,9.769e-05,2]
[348173995,1736364640269,-28596.04151717,9.769e-05,2]
[348173996,1736364640283,-2524.5,9.769e-05,2]
[348173997,1736364640297,-1331.5882,9.769e-05,2]
[348173998,1736364640309,-1050.9147,9.769e-05,2]
[348173999,1736364640346,-16113.47614739,9.769e-05,2]
[348174011,1736364643648,-500.0,9.768e-05,2]
[348174012,1736364643658,-20300.75125561,9.769e-05,2]
[348174013,1736364643909,-6197.34168113,9.769e-05,2]
[348174014,1736364643919,-150.0,9.824e-05,2]
[348174015,1736364643930,-150.0,9.842e-05,2]
[348174016,1736364643940,-171.56,9.846e-05,2]
[348174017,1736364643949,-150.0,9.886e-05,2]
[348174018,1736364643959,-9514.90166993,9.899e-05,2]
[348174019,1736364643970,-15070.99478516,9.899e-05,2]
[348174020,1736364643987,-47691.58203869,9.899e-05,2]
[348174021,1736364643999,-31652.90233517,9.899e-05,2]
[348174022,1736364644009,-5000.0,9.9e-05,2]
[348174023,1736364644018,-150.0,9.916e-05,2]
[348174024,1736364644027,-150.0,9.947e-05,2]
[348174025,1736364644037,-500.0,9.973e-05,2]
[348174026,1736364644047,-500.0,9.973e-05,2]
[348174027,1736364644057,-150.0,9.991e-05,2]
[348174028,1736364644067,-1000.0,9.999e-05,2]
[348174030,1736364644077,-500.0,9.999e-05,2]
[348174032,1736364644087,-1172.22,9.999e-05,2]
[348174034,1736364644097,-1394.33,9.999e-05,2]
[348174035,1736364644107,-834.35,9.999e-05,2]
[348174037,1736364644117,-500.0,9.999e-05,2]
[348174039,1736364644127,-508.01,9.999e-05,2]
[348174041,1736364644136,-1813.85,9.999e-05,2]
[348174042,1736364644145,-500.0,9.999e-05,2]
[348174044,1736364644154,-500.0,9.999e-05,2]
[348174046,1736364644164,-566.67,9.999e-05,2]
[348174047,1736364644173,-500.0,9.999e-05,2]
[348174048,1736364644182,-500.0,9.999e-05,2]
[348174049,1736364644191,-966.93,9.999e-05,2]
[348174050,1736364644201,-500.0,9.999e-05,2]
[348174051,1736364644211,-1147.78,9.999e-05,2]
[348174052,1736364644222,-100322.269933,0.0001,2]
[348174053,1736364644233,-627228.72657352,0.0001,2]
[348174059,1736364646115,-500.0,9.768e-05,2]
[348174060,1736364646124,-519.08,9.999e-05,2]
[348174061,1736364646133,-16375.62446565,0.0001,2]
[348174062,1736364646142,-144.31649819,0.0001,2]
[348174063,1736364646178,-1339.97135802,0.0001,2]
[348174066,1736364646761,-8474.93085137,0.0001,2]
[348174067,1736364646775,-551.58542842,0.0001,2]
[348174068,1736364646785,-426.4587781,0.0001,2]
[348174069,1736364646798,-27318.72952599,0.0001,2]
[348174070,1736364646810,-396926.53939358,0.0001,2]
[348174071,1736364646835,-510.00939672,0.0001,2]
[348174072,1736364646846,-648.709281,0.0001,2]
[348174074,1736364733306,156.6,0.00015616,61]
[348174075,1736364733521,156.6,0.00015616,68]
[348174076,1736364733749,156.6,0.00015616,75]
[348174077,1736364733988,156.6,0.00015616,83]
[348174078,1736364734421,156.6,0.00015616,90]
[348174079,1736364734910,156.6,0.00015616,97]
[348174080,1736364734984,156.6,0.00015616,105]
[348174081,1736364735090,156.6,0.00015616,112]
[348174082,1736364735334,156.6,0.00015616,120]
[348174083,1736365352227,-250.0,8.937e-05,2]
[348174084,1736365369333,-650.0,8.897e-05,2]
[348174089,1736365560245,160.95,6.882e-05,2]
[348174090,1736365565139,875.54,8.647e-05,2]
[348174091,1736365582199,8.1549372,8.597e-05,2]
[348174092,1736365640880,156.6,0.00015616,69]
[348174093,1736365641094,156.6,0.00015616,86]
[348174094,1736365641324,156.6,0.00015616,103]
[348174095,1736365641521,156.6,0.00015616,119]
[348174102,1736365649361,781.45,8.219e-05,2]
[348174164,1736365832441,-155.6750628,8.597e-05,2]
[348174165,1736365832451,-250.0,8.847e-05,2]
[348174166,1736365832465,-1225.75,8.897e-05,2]
[348174167,1736365832474,-190.34,8.897e-05,2]
[348174168,1736365832483,-50.0,8.937e-05,2]
[348174169,1736365832492,-420.9253372,8.937e-05,2]
[348174170,1736365832503,-295.44814184,8.937e-05,2]
[348174171,1736365832514,-21178.09597499,8.937e-05,2]
[348174172,1736365832592,-10119.34244395,8.937e-05,2]
[348174173,1736365832603,-7315.3471862,8.937e-05,2]
[348174174,1736365832738,-10670.84091582,8.937e-05,2]
[348174175,1736365832748,-1000.0,8.937e-05,2]
[348174176,1736365832757,-250.0,8.938e-05,2]
[348174177,1736365832767,-150.0,9.041e-05,2]
[348174178,1736365832776,-150.0,9.046e-05,2]
[348174179,1736365832785,-491.62,9.047e-05,2]
[348174180,1736365832794,-250.0,9.06e-05,2]
[348174181,1736365832803,-1761.78,9.133e-05,2]
[348174182,1736365832813,-155.48,9.133e-05,2]
[348174183,1736365832822,-23900.0,9.145e-05,2]
[348174184,1736365832831,-620.31,9.152e-05,2]
[348174185,1736365832841,-5346.774,9.208e-05,2]
[348174186,1736365832853,-264.87,9.208e-05,2]
[348174187,1736365832864,-1000.0,9.208e-05,2]
[348174188,1736365832873,-150.0,9.395e-05,2]
[348174189,1736365832882,-150.0,9.395e-05,2]
[348174191,1736365832892,-150.32158698,9.395e-05,2]
[348174193,1736365832902,-172.18944151,9.395e-05,2]
[348174195,1736365832911,-150.0,9.395e-05,2]
[348174197,1736365832920,-150.00000001,9.395e-05,2]
[348174198,1736365832929,-150.0,9.395e-05,2]
[348174200,1736365832938,-277.53698568,9.395e-05,2]
[348174202,1736365832948,-150.48340736,9.395e-05,2]
[348174204,1736365832959,-150.0,9.395e-05,2]
[348174206,1736365832968,-169.38,9.446e-05,2]
[348174207,1736365832978,-150.0,9.482e-05,2]
[348174208,1736365832987,-150.0,9.568e-05,2]
[348174209,1736365832997,-150.0,9.568e-05,2]
[348174210,1736365833006,-150.0,9.568e-05,2]
[348174211,1736365833016,-150.0,9.655e-05,2]
[348174212,1736365833025,-494.8389256,9.662e-05,2]
[348174213,1736365833035,-852.061,9.667e-05,2]
[348174215,1736365833044,-6543.1867,9.668e-05,2]
[348174217,1736365833053,-886.9544,9.668e-05,2]
[348174219,1736365833063,-1399.2202,9.668e-05,2]
[348174221,1736365833073,-4992.4492,9.668e-05,2]
[348174223,1736365833086,-24755.1275,9.668e-05,2]
[348174225,1736365833096,-875.54,9.728e-05,2]
[348174227,1736365833106,-150.0,9.742e-05,2]
[348174229,1736365833116,-150.0,9.742e-05,2]
[348174230,1736365833126,-150.0,9.742e-05,2]
[348174231,1736365833136,-500.0,9.767e-05,2]
[348174232,1736365833145,-390.21,9.767e-05,2]
[348174233,1736365833155,-500.0,9.767e-05,2]
[348174234,1736365833166,-500.0,9.767e-05,2]
[348174235,1736365833175,-500.0,9.767e-05,2]
[348174236,1736365833185,-500.0,9.767e-05,2]
[348174237,1736365833196,-500.0,9.767e-05,2]
[348174238,1736365833206,-500.0,9.767e-05,2]
[348174239,1736365833216,-500.0,9.767e-05,2]
[348174240,1736365833226,-155.9150043,9.767e-05,2]
[348174241,1736365833235,-500.0,9.767e-05,2]
[348174242,1736365833245,-500.0,9.767e-05,2]
[348174243,1736365833254,-500.0,9.767e-05,2]
[348174244,1736365833263,-500.0,9.767e-05,2]
[348174245,1736365833273,-500.0,9.767e-05,2]
[348174246,1736365833282,-500.0,9.767e-05,2]
[348174247,1736365833292,-500.0,9.767e-05,2]
[348174248,1736365833301,-500.0,9.767e-05,2]
[348174249,1736365833311,-500.0,9.767e-05,2]
[348174250,1736365833320,-500.0,9.767e-05,2]
[348174251,1736365833329,-500.0,9.767e-05,2]
[348174252,1736365833338,-500.0,9.767e-05,2]
[348174253,1736365833347,-500.0,9.767e-05,2]
[348174254,1736365833356,-500.0,9.767e-05,2]
[348174255,1736365833366,-500.0,9.767e-05,2]
[348174256,1736365833375,-500.0,9.767e-05,2]
[348174257,1736365833384,-500.0,9.767e-05,2]
[348174258,1736365833394,-500.0,9.767e-05,2]
[348174259,1736365833403,-563.77,9.767e-05,2]
[348174260,1736365833412,-500.0,9.767e-05,2]
[348174261,1736365833422,-500.0,9.767e-05,2]
[348174262,1736365833431,-638.13,9.767e-05,2]
[348174263,1736365833441,-500.0,9.767e-05,2]
[348174264,1736365833450,-381.49556829,9.767e-05,2]
[348174265,1736365833460,-500.0,9.767e-05,2]
[348174266,1736365833470,-500.0,9.767e-05,2]
[348174267,1736365833480,-1167.93,9.767e-05,2]
[348174268,1736365833489,-500.0,9.767e-05,2]
[348174269,1736365833499,-500.0,9.767e-05,2]
[348174270,1736365833508,-500.0,9.767e-05,2]
[348174271,1736365833517,-500.0,9.767e-05,2]
[348174272,1736365833527,-500.0,9.767e-05,2]
[348174273,1736365833536,-500.0,9.767e-05,2]
[348174274,1736365833545,-2779.51,9.767e-05,2]
[348174275,1736365833554,-500.0,9.767e-05,2]
[348174276,1736365833563,-500.0,9.767e-05,2]
[348174277,1736365833573,-500.0,9.767e-05,2]
[348174278,1736365833582,-500.0,9.767e-05,2]
[348174279,1736365833591,-500.0,9.767e-05,2]
[348174280,1736365833600,-501.03177746,9.767e-05,2]
[348174281,1736365833612,-500.0,9.767e-05,2]
[348174282,1736365833622,-500.0,9.767e-05,2]
[348174283,1736365833631,-500.0,9.767e-05,2]
[348174284,1736365833641,-500.0,9.767e-05,2]
[348174285,1736365833650,-500.0,9.767e-05,2]
[348174286,1736365833660,-600.82,9.767e-05,2]
[348174287,1736365833669,-500.0,9.767e-05,2]
[348174288,1736365833679,-500.0,9.767e-05,2]
[348174289,1736365833688,-500.0,9.767e-05,2]
[348174290,1736365833698,-500.0,9.767e-05,2]
[348174291,1736365833710,-500.0,9.767e-05,2]
[348174292,1736365833720,-645.47,9.767e-05,2]
[348174293,1736365833729,-500.0,9.767e-05,2]
[348174294,1736365833739,-500.0,9.767e-05,2]
[348174295,1736365833749,-500.0,9.767e-05,2]
[348174296,1736365833759,-633.26,9.767e-05,2]
[348174297,1736365833768,-500.61300584,9.767e-05,2]
[348174298,1736365833777,-500.0,9.767e-05,2]
[348174299,1736365833786,-500.0,9.767e-05,2]
[348174300,1736365833795,-500.0,9.767e-05,2]
[348174301,1736365833805,-1634.83542235,9.767e-05,2]
[348174302,1736365834092,-1912.34457765,9.767e-05,2]
[348174303,1736365834103,-500.0,9.767e-05,2]
[348174304,1736365834113,-301.59,9.767e-05,2]
[348174305,1736365834123,-500.0,9.767e-05,2]
[348174306,1736365834132,-500.0,9.767e-05,2]
[348174307,1736365834142,-500.0,9.767e-05,2]
[348174308,1736365834152,-500.0,9.767e-05,2]
[348174309,1736365834162,-500.0,9.767e-05,2]
[348174310,1736365834172,-500.0,9.767e-05,2]
[348174311,1736365834182,-1462.48,9.767e-05,2]
[348174312,1736365834192,-500.0,9.767e-05,2]
[348174313,1736365834203,-500.0,9.767e-05,2]
[348174314,1736365834212,-500.0,9.767e-05,2]
[348174315,1736365834222,-500.0,9.767e-05,2]
[348174316,1736365834232,-503.38599611,9.767e-05,2]
[348174317,1736365834242,-500.0,9.767e-05,2]
[348174318,1736365834251,-500.0,9.767e-05,2]
[348174319,1736365834262,-500.0,9.767e-05,2]
[348174320,1736365834271,-500.0,9.767e-05,2]
[348174321,1736365834281,-500.0,9.767e-05,2]
[348174322,1736365834290,-500.0,9.767e-05,2]
[348174323,1736365834299,-500.0,9.767e-05,2]
[348174324,1736365834308,-171.6072469,9.767e-05,2]
[348174325,1736365834321,-328.3927531,9.767e-05,2]
[348174326,1736365834331,-500.0,9.767e-05,2]
[348174327,1736365834340,-500.0,9.767e-05,2]
[348174328,1736365834350,-500.0,9.767e-05,2]
[348174329,1736365834359,-2806.35,9.767e-05,2]
[348174330,1736365834369,-500.0,9.767e-05,2]
[348174331,1736365834378,-500.0,9.767e-05,2]
[348174332,1736365834388,-500.0,9.767e-05,2]
[348174333,1736365834398,-500.0,9.767e-05,2]
[348174334,1736365834407,-500.0,9.767e-05,2]
[348174335,1736365834417,-500.0,9.767e-05,2]
[348174336,1736365834427,-500.0,9.767e-05,2]
[348174337,1736365834436,-500.0,9.767e-05,2]
[348174338,1736365834445,-774.1,9.767e-05,2]
[348174339,1736365834457,-586.55,9.767e-05,2]
[348174340,1736365834466,-500.0,9.767e-05,2]
[348174341,1736365834476,-500.0,9.767e-05,2]
[348174342,1736365834486,-500.0,9.767e-05,2]
[348174343,1736365834495,-173.72390622,9.767e-05,2]
[348174344,1736365834507,-326.27609378,9.767e-05,2]
[348174345,1736365834517,-42.63385974,9.767e-05,2]
[348174353,1736365838692,-457.36614026,9.767e-05,2]
[348174355,1736365838703,-545.59,9.767e-05,2]
[348174356,1736365838713,-500.0,9.767e-05,2]
[348174358,1736365838722,-500.0,9.767e-05,2]
[348174360,1736365838731,-500.0,9.767e-05,2]
[348174362,1736365838740,-500.0,9.767e-05,2]
[348174364,1736365838749,-500.0,9.767e-05,2]
[348174366,1736365838759,-500.0,9.767e-05,2]
[348174368,1736365838768,-1320.44,9.767e-05,2]
[348174370,1736365838777,-16.1514471,9.767e-05,2]
[348174381,1736365840469,-426.5145,9.767e-05,2]
[348174382,1736365840480,-57.3340529,9.767e-05,2]
[348174383,1736365840490,-511.7,9.767e-05,2]
[348174384,1736365840499,-500.0,9.767e-05,2]
[348174385,1736365840509,-500.0,9.767e-05,2]
[348174386,1736365840519,-500.0,9.767e-05,2]
[348174387,1736365840528,-155.94650853,9.767e-05,2]
[348174388,1736365840538,-501.0724027,9.767e-05,2]
[348174389,1736365840547,-414.09703588,9.767e-05,2]
[348174390,1736365840578,-85.90296412,9.767e-05,2]
[348174391,1736365840588,-500.0,9.767e-05,2]
[348174392,1736365840597,-901.56,9.767e-05,2]
[348174393,1736365840606,-500.0,9.767e-05,2]
[348174394,1736365840616,-500.0,9.767e-05,2]
[348174395,1736365840626,-500.0,9.767e-05,2]
[348174396,1736365840636,-501.27678787,9.767e-05,2]
[348174397,1736365840645,-297.74024801,9.767e-05,2]
[348174398,1736365840656,-202.25975199,9.767e-05,2]
[348174400,1736365840666,-99.81024797,9.767e-05,2]
[348174407,1736365840720,-400.18975203,9.767e-05,2]
[348174409,1736365840729,-1570.93,9.767e-05,2]
[348174411,1736365840739,-500.0,9.767e-05,2]
[348174413,1736365840748,-500.0,9.767e-05,2]
[348174415,1736365840757,-159.78400911,9.767e-05,2]
[348174416,1736365840766,-500.0,9.767e-05,2]
[348174417,1736365840775,-28.6269295,9.767e-05,2]
[348174435,1736365844068,-2650.86294906,9.136e-05,2]
[348174436,1736365844081,-15680.43705094,9.136e-05,2]
[348174437,1736365844094,-471.3730705,9.767e-05,2]
[348174438,1736365844103,-500.0,9.767e-05,2]
[348174439,1736365844112,-500.0,9.767e-05,2]
[348174440,1736365844122,-946.26,9.767e-05,2]
[348174441,1736365844132,-500.0,9.767e-05,2]
[348174442,1736365844142,-500.0,9.767e-05,2]
[348174443,1736365844153,-509.35,9.767e-05,2]
[348174444,1736365844163,-500.0,9.767e-05,2]
[348174445,1736365844174,-500.0,9.767e-05,2]
[348174446,1736365844183,-597.38,9.767e-05,2]
[348174447,1736365844192,-500.0,9.767e-05,2]
[348174448,1736365844203,-500.0,9.767e-05,2]
[348174449,1736365844212,-569.61,9.767e-05,2]
[348174450,1736365844222,-316.47,9.767e-05,2]
[348174451,1736365844231,-500.0,9.767e-05,2]
[348174452,1736365844241,-500.0,9.767e-05,2]
[348174453,1736365844251,-500.0,9.767e-05,2]
[348174454,1736365844261,-2059.63,9.767e-05,2]
[348174455,1736365844271,-500.0,9.767e-05,2]
[348174456,1736365844282,-500.0,9.767e-05,2]
[348174457,1736365844291,-500.0,9.767e-05,2]
[348174458,1736365844300,-694.76,9.767e-05,2]
[348174459,1736365844310,-500.0,9.767e-05,2]
[348174460,1736365844319,-524.71,9.767e-05,2]
[348174461,1736365844329,-500.0,9.767e-05,2]
[348174462,1736365844338,-500.0,9.767e-05,2]
[348174463,1736365844347,-500.0,9.767e-05,2]
[348174464,1736365844356,-500.0,9.767e-05,2]
[348174465,1736365844365,-500.0,9.767e-05,2]
[348174466,1736365844375,-500.0,9.767e-05,2]
[348174467,1736365844385,-500.0,9.767e-05,2]
[348174468,1736365844395,-629.36,9.767e-05,2]
[348174469,1736365844404,-500.0,9.767e-05,2]
[348174471,1736365844414,-500.0,9.767e-05,2]
[348174473,1736365844423,-500.0,9.767e-05,2]
[348174475,1736365844432,-500.0,9.767e-05,2]
[348174477,1736365844442,-500.0,9.767e-05,2]
[348174479,1736365844451,-500.0,9.767e-05,2]
[348174481,1736365844460,-500.0,9.767e-05,2]
[348174483,1736365844469,-2672.02,9.767e-05,2]
[348174485,1736365844479,-500.0,9.767e-05,2]
[348174487,1736365844488,-500.0,9.767e-05,2]
[348174489,1736365844498,-500.0,9.767e-05,2]
[348174491,1736365844507,-500.0,9.767e-05,2]
[348174493,1736365844516,-463.23873128,9.767e-05,2]
[348174494,1736365844526,-500.0,9.767e-05,2]
[348174496,1736365844535,-500.0,9.767e-05,2]
[348174497,1736365844544,-500.0,9.767e-05,2]
[348174498,1736365844553,-1291.41,9.767e-05,2]
[348174499,1736365844563,-500.0,9.767e-05,2]
[348174501,1736365844573,-159.43487413,9.767e-05,2]
[348174503,1736365844582,-505.27019192,9.767e-05,2]
[348174505,1736365844592,-500.0,9.767e-05,2]
[348174507,1736365844601,-501.10658168,9.767e-05,2]
[348174510,1736365844611,-860.97,9.767e-05,2]
[348174513,1736365844620,-540.28,9.767e-05,2]
[348174516,1736365844629,-501.93483655,9.767e-05,2]
[348174519,1736365844638,-500.0,9.767e-05,2]
[348174522,1736365844648,-512.96877908,9.768e-05,2]
[348174525,1736365844658,-502.5475222,9.768e-05,2]
[348174528,1736365844668,-500.0,9.768e-05,2]
[348174529,1736365844678,-500.0,9.768e-05,2]
[348174531,1736365844688,-210.27,9.768e-05,2]
[348174533,1736365844698,-500.0,9.768e-05,2]
[348174536,1736365844710,-500.0,9.768e-05,2]
[348174537,1736365844720,-500.0,9.768e-05,2]
[348174538,1736365844730,-501.35271764,9.768e-05,2]
[348174539,1736365844740,-500.0,9.768e-05,2]
[348174540,1736365844750,-500.0,9.768e-05,2]
[348174541,1736365844760,-500.0,9.768e-05,2]
[348174542,1736365844770,-500.0,9.768e-05,2]
[348174543,1736365844780,-500.0,9.768e-05,2]
[348174544,1736365844790,-500.0,9.768e-05,2]
[348174545,1736365844800,-500.0,9.768e-05,2]
[348174546,1736365844810,-500.0,9.768e-05,2]
[348174547,1736365844820,-500.0,9.768e-05,2]
[348174548,1736365844829,-500.0,9.768e-05,2]
[348174549,1736365844838,-500.0,9.768e-05,2]
[348174550,1736365844849,-500.0,9.768e-05,2]